[Event "7th Cesme Open-A 2019"]
[Site "Cesme"]
[Date "2019.06.29"]
[Round "8"]
[White "Ozates, Tuna"]
[Black "Kucuksari, Kaan"]
[Result "0-1"]
[ECO "B03"]
[WhiteElo "2214"]
[BlackElo "2299"]
[Annotator "NA"]
[PlyCount "141"]
[EventDate "2019.06.24"]
[EventType "swiss"]
[EventCountry "TUR"]
[SourceTitle "playchess.com"]
[Source "ChessBase"]
[SourceQuality "1"]
[TimeControl "5400+30"]

1. e4 {[%emt 0:00:30]} Nf6 {[%emt 0:00:30]} 2. e5 {[%emt 0:00:30]} Nd5 {[%emt 0:00:30]} 3. d4 {[%emt 0:00:30]} d6 {[%emt 0:00:30]} 4. c4 {[%emt 0:00:00]} Nb6 {[%emt 0:00:00]} 5. exd6 {[%emt 0:00:00]} exd6 {[%emt 0:00:00]} 6. h3 {[%emt 0:00:30]} Be7 {[%emt 0:00:30]} 7. Nf3 {[%emt 0:00:00]} Bf5 {[%emt 0:00:00]} 8. Bd3 {[%emt 0:03:00]} Bxd3 {[%emt 0:06:00]} 9. Qxd3 {[%emt 0:00:30]} O-O {[%emt 0:00:30]} 10. O-O {[%emt 0:00:30]} c6 {[%emt 0:03:30]} 11. Nc3 {[%emt 0:00:30]} d5 {[%emt 0:00:30]} 12. c5 {[%emt 0:00:30]} Nc8 {[%emt 0:01:30]} 13. Bf4 {[%emt 0:00:30]} Nd7 {[%emt 0:02:30]} 14. b4 {[%emt 0:03:30]} Bf6 {[%emt 0:02:30]} 15. Rab1 {[%emt 0:03:30]} a6 {[%emt 0:01:30]} 16. Rfe1 {[%emt 0:02:30]} b5 {[%emt 0:05:30]} 17. a4 {[%emt 0:01:30]} Ne7 {[%emt 0:06:30]} 18. Bd6 {[%emt 0:03:30]} Re8 {[%emt 0:00:30]} 19. Re2 {[%emt 0:04:30]} Nf8 {[%emt 0:05:30]} 20. Ra2 {[%emt 0:03:30]} Qd7 {[%emt 0:01:30]} 21. Rba1 {[%emt 0:01:30]} Rac8 {[%emt 0:00:30]} 22. axb5 {[%emt 0:02:30]} axb5 {[%emt 0:00:30]} 23. g4 {[%emt 0:00:00]} Neg6 {[%emt 0:01:30]} 24. Ra7 {[%emt 0:09:00]} Qd8 {[%emt 0:01:30]} 25. Qf5 {[%emt 0:04:30]} Ne6 {[%emt 0:04:30]} 26. g5 {[%emt 0:18:30]} Bxg5 {[%emt 0:11:30]} 27. Qxf7+ {[%emt 0:12:30]} Kh8 {[%emt 0:00:00]} 28. Re1 {[%emt 0:02:30]} Qf6 {[%emt 0:00:00]} 29. Nxg5 {[%emt 0:00:30]} Qxg5+ {[%emt 0:00:00]} 30. Kh1 {[%emt 0:00:30]} Qf6 {[%emt 0:06:00]} 31. Qxf6 {[%emt 0:03:30]} gxf6 {[%emt 0:00:30]} 32. Rd1 {[%emt 0:07:36]} Ra8 {[%emt 0:01:30]} 33. Rxa8 {[%emt 0:04:40]} Rxa8 {[%emt 0:00:30]} 34. Bg3 {[%emt 0:02:35]} Kg7 {[%emt 0:06:30]} 35. Kg2 {[%emt 0:02:44]} Ne7 {[%emt 0:00:30]} 36. Ne2 {[%emt 0:00:30]} Nf5 {[%emt 0:01:30]} 37. Rd2 {[%emt 0:02:11]} Ra3 {[%emt 0:03:30]} 38. h4 {[%emt 0:01:25]} Kg6 {[%emt 0:08:30]} 39. f3 {[%emt 0:01:07]} Rb3 {[%emt 0:00:37]} 40. Bf2 {[%emt 0:00:20]} Rxb4 {[%emt 0:00:23]} 41. Ra2 {[%emt 0:00:34]} Ra4 {[%emt 0:02:01]} 42. Rd2 {[%emt 0:00:48]} Ra3 {[%emt 0:00:10]} 43. Rb2 {[%emt 0:00:22]} h6 {[%emt 0:02:23]} 44. Rb1 {[%emt 0:00:28]} Ra2 {[%emt 0:01:58]} 45. Kf1 {[%emt 0:00:13]} Ra3 {[%emt 0:01:01]} 46. Kg2 {[%emt 0:00:02]} Ra2 {[%emt 0:01:01]} 47. Kf1 {[%emt 0:00:04]} Ra4 {[%emt 0:01:45]} 48. Rd1 {[%emt 0:00:17]} Ra3 {[%emt 0:01:12]} 49. Kg2 {[%emt 0:00:36]} Re3 {[%emt 0:00:32]} 50. h5+ {[%emt 0:02:01]} Kg5 {[%emt 0:00:14]} 51. Rg1 {[%emt 0:00:00]} Rd3 {[%emt 0:03:02]} 52. Rh1 {[%emt 0:00:43]} Rd2 {[%emt 0:01:45]} 53. Kf1 {[%emt 0:01:06]} Rd1+ {[%emt 0:00:48]} 54. Be1 {[%emt 0:00:01]} Nfxd4 {[%emt 0:00:50]} 55. Kg2 {[%emt 0:00:38]} Nxe2 {[%emt 0:01:59]} 56. Bh4+ {[%emt 0:00:30]} Kxh5 {[%emt 0:00:00]} 57. Rxd1 {[%emt 0:00:07]} Kxh4 {[%emt 0:00:00]} 58. Kf2 {[%emt 0:00:00]} Nc3 {[%emt 0:01:55]} 59. Rh1+ {[%emt 0:00:25]} Kg5 {[%emt 0:00:30]} 60. Ke3 {[%emt 0:00:30]} Nxc5 {[%emt 0:00:30]} 61. Kd4 {[%emt 0:00:30]} N5a4 {[%emt 0:00:30]} 62. f4+ {[%emt 0:00:30]} Kg6 {[%emt 0:00:30]} 63. f5+ {[%emt 0:00:30]} Kg5 {[%emt 0:00:00]} 64. Rg1+ {[%emt 0:00:00]} Kxf5 {[%emt 0:00:00]} 65. Rf1+ {[%emt 0:00:29]} Ke6 {[%emt 0:00:00]} 66. Rh1 {[%emt 0:00:00]} c5+ {[%emt 0:00:00]} 67. Kd3 {[%emt 0:00:06]} b4 {[%emt 0:00:00]} 68. Kc2 {[%emt 0:00:00]} c4 {[%emt 0:00:00]} 69. Ra1 {[%emt 0:00:00]} b3+ {[%emt 0:00:13]} 70. Kc1 {[%emt 0:00:23]} b2+ {[%emt 0:00:30]} 71. Kc2 {[%emt 0:00:30]} 0-1

[Event "7th Cesme Open-A 2019"]
[Site "Cesme"]
[Date "2019.06.29"]
[Round "8"]
[White "Yilmaz, Goktan"]
[Black "Guseynov, Alihan"]
[Result "1/2-1/2"]
[ECO "B61"]
[WhiteElo "2155"]
[BlackElo "2274"]
[Annotator "NA"]
[PlyCount "83"]
[EventDate "2019.06.24"]
[EventType "swiss"]
[EventCountry "TUR"]
[SourceTitle "playchess.com"]
[Source "ChessBase"]
[SourceQuality "1"]
[TimeControl "5400+30"]

1. e4 {[%emt 0:00:30]} c5 {[%emt 0:00:30]} 2. Nf3 {[%emt 0:00:30]} Nc6 {[%emt 0:00:30]} 3. d4 {[%emt 0:00:30]} cxd4 {[%emt 0:00:30]} 4. Nxd4 {[%emt 0:00:00]} Nf6 {[%emt 0:00:30]} 5. Nc3 {[%emt 0:00:00]} d6 {[%emt 0:00:00]} 6. Bg5 {[%emt 0:00:00]} Bd7 {[%emt 0:00:00]} 7. f3 {[%emt 0:00:00]} Rc8 {[%emt 0:05:30]} 8. Qd2 {[%emt 0:03:30]} Nxd4 {[%emt 0:05:30]} 9. Qxd4 {[%emt 0:00:30]} Qa5 {[%emt 0:00:30]} 10. Be3 {[%emt 0:05:30]} a6 {[%emt 0:04:30]} 11. O-O-O {[%emt 0:04:30]} g6 {[%emt 0:11:30]} 12. Bc4 {[%emt 0:10:30]} Bg7 {[%emt 0:02:30]} 13. Bb3 {[%emt 0:01:30]} O-O {[%emt 0:05:30]} 14. Qb6 {[%emt 0:03:30]} Qxb6 {[%emt 0:02:30]} 15. Bxb6 {[%emt 0:00:30]} Be6 {[%emt 0:12:30]} 16. Nd5 {[%emt 0:12:30]} Bxd5 {[%emt 0:04:30]} 17. Bxd5 {[%emt 0:02:30]} Nxd5 {[%emt 0:00:30]} 18. exd5 {[%emt 0:01:30]} Rc4 {[%emt 0:02:30]} 19. c3 {[%emt 0:03:30]} h5 {[%emt 0:01:30]} 20. Rhe1 {[%emt 0:00:30]} Bf6 {[%emt 0:00:30]} 21. Kc2 {[%emt 0:01:30]} Rfc8 {[%emt 0:00:30]} 22. Kd3 {[%emt 0:01:30]} Kf8 {[%emt 0:05:30]} 23. Rc1 {[%emt 0:05:30]} Ke8 {[%emt 0:02:30]} 24. Rc2 {[%emt 0:01:30]} Kd7 {[%emt 0:03:30]} 25. Re4 {[%emt 0:05:30]} Rxe4 {[%emt 0:00:30]} 26. fxe4 {[%emt 0:02:30]} Be5 {[%emt 0:01:30]} 27. h3 {[%emt 0:00:30]} f5 {[%emt 0:03:30]} 28. c4 {[%emt 0:03:30]} fxe4+ {[%emt 0:03:30]} 29. Kxe4 {[%emt 0:00:30]} Rf8 {[%emt 0:01:30]} 30. Be3 {[%emt 0:01:30]} e6 {[%emt 0:00:58]} 31. c5 {[%emt 0:05:30]} exd5+ {[%emt 0:04:25]} 32. Kxd5 {[%emt 0:00:30]} Rf1 {[%emt 0:04:20]} 33. cxd6 {[%emt 0:01:30]} Bxd6 {[%emt 0:00:30]} 34. Rf2 {[%emt 0:02:30]} Rxf2 {[%emt 0:02:34]} 35. Bxf2 {[%emt 0:00:30]} Bf4 {[%emt 0:00:00]} 36. g3 {[%emt 0:00:30]} Bd6 {[%emt 0:00:34]} 37. g4 {[%emt 0:00:30]} hxg4 {[%emt 0:00:06]} 38. hxg4 {[%emt 0:00:30]} Bf4 {[%emt 0:00:00]} 39. Kc5 {[%emt 0:00:30]} Be5 {[%emt 0:00:00]} 40. Kb6 {[%emt 0:00:30]} Kc8 {[%emt 0:00:09]} 41. b3 {[%emt 0:00:30]} Bd6 {[%emt 0:00:13]} 42. Bd4 {[%emt 0:01:30]} 1/2-1/2

[Event "7th Cesme Open-A 2019"]
[Site "Cesme"]
[Date "2019.06.30"]
[Round "9"]
[White "Iskandarov, Misratdin"]
[Black "Bernadskiy, Vitaliy"]
[Result "1-0"]
[ECO "B51"]
[WhiteElo "2502"]
[BlackElo "2578"]
[Annotator "ChessBase"]
[PlyCount "101"]
[EventDate "2019.06.24"]
[EventType "swiss"]
[EventCountry "TUR"]
[SourceTitle "playchess.com"]
[Source "ChessBase"]
[SourceQuality "1"]
[TimeControl "5400+30"]

1. e4 {[%emt 0:01:30]} c5 {[%emt 0:00:30]} 2. Nf3 {[%emt 0:00:30]} d6 {[%emt 0:00:00]} 3. Bb5+ {[%emt 0:00:00]} Nd7 {[%emt 0:00:00]} 4. a4 {[%emt 0:00:00]} Ngf6 {[%emt 0:01:30]} 5. Nc3 {[%emt 0:00:00]} e6 {[%emt 0:00:30]} 6. O-O {[%emt 0:00:00]} Be7 {[%emt 0:00:30]} 7. Re1 {[%emt 0:00:30]} a6 {[%emt 0:02:30]} 8. Bf1 {[%emt 0:00:00]} b6 {[%emt 0:00:30]} 9. d4 {[%emt 0:14:00]} cxd4 {[%emt 0:00:30]} 10. Nxd4 {[%emt 0:00:30]} Bb7 {[%emt 0:00:00]} 11. Nb3 {[%emt 0:00:00]} Rc8 {[%emt 0:00:00]} 12. Bf4 {[%emt 0:04:00]} Ne5 {[%emt 0:01:30]} 13. Nd2 {[%emt 0:07:30]} Nfd7 {[%emt 0:06:30]} 14. Be3 {[%emt 0:01:30]} h5 {[%emt 0:01:30]} 15. Be2 {[%emt 0:06:30]} Nf6 {[%emt 0:06:30]} 16. h3 {[%emt 0:00:30]} h4 {[%emt 0:16:30]} 17. f4 {[%emt 0:01:30]} Ned7 {[%emt 0:00:30]} 18. Bf3 {[%emt 0:00:30]} e5 {[%emt 0:01:30]} 19. Nd5 {[%emt 0:05:30]} exf4 {[%emt 0:03:30]} 20. Bxf4 {[%emt 0:08:30]} Ne5 {[%emt 0:00:30]} 21. Nb3 {[%emt 0:05:30]} Nxf3+ {[%emt 0:14:30]} 22. Qxf3 {[%emt 0:00:00]} Nxd5 {[%emt 0:04:30]} 23. exd5 {[%emt 0:00:00]} O-O {[%emt 0:00:00]} 24. Nd4 {[%emt 0:03:30]} Qd7 {[%emt 0:05:00]} 25. Qd3 {[%emt 0:09:30]} Rfe8 {[%emt 0:01:30]} 26. c4 {[%emt 0:00:30]} Bf6 {[%emt 0:03:30]} 27. Nf5 {[%emt 0:04:30]} Bxb2 {[%emt 0:03:30]} 28. Rab1 {[%emt 0:05:30]} Ba3 {[%emt 0:01:30]} 29. Bg5 {[%emt 0:05:54]} Bc5+ {[%emt 0:00:30]} 30. Kh2 {[%emt 0:00:06]} f6 {[%emt 0:03:30]} 31. Bxh4 {[%emt 0:02:39]} Rxe1 {[%emt 0:01:30]} 32. Rxe1 {[%emt 0:00:04]} Re8 {[%emt 0:00:30]} 33. Rxe8+ {[%emt 0:01:19]} Qxe8 {[%emt 0:00:30]} 34. Bxf6 {[%emt 0:00:00]} Qe1 {[%emt 0:03:38]} 35. Bd4 {[%emt 0:00:16]} Bc8 {[%emt 0:03:42]} 36. Nh6+ {[%emt 0:08:10]} Kh8 {[%emt 0:01:31]} 37. Nf7+ {[%emt 0:00:20]} Kg8 {[%emt 0:00:03]} 38. Ng5 {[%emt 0:03:09]} Qh4 {[%emt 0:01:05]} 39. Qe3 {[%emt 0:01:13]} Bd7 {[%emt 0:00:06]} 40. Bxc5 {[%emt 0:00:23]} dxc5 {[%emt 0:00:24]} 41. Qe5 {[%emt 0:00:11]} Qh5 {[%emt 0:01:18]} 42. d6 {[%emt 0:01:02]} Qg6 {[%emt 0:02:02]} 43. Qd5+ {[%emt 0:00:57]} Kf8 {[%emt 0:00:33]} 44. Qa8+ {[%emt 0:00:17]} Be8 {[%emt 0:03:53]} 45. Qf3+ {[%emt 0:00:46]} Kg8 {[%emt 0:00:37]} 46. Qd5+ {[%emt 0:00:04]} Kh8 {[%emt 0:00:15]} 47. d7 {[%emt 0:00:42]} Bxd7 {[%emt 0:02:52]} 48. Nf7+ {[%emt 0:00:08]} Kg8 {[%emt 0:00:01]} 49. Nd8+ {[%emt 0:01:55]} Kh7 {[%emt 0:00:49]} 50. Qxd7 {[%emt 0:00:04]} Qf6 {[%emt 0:01:01]} 51. Qc7 {[%emt 0:00:18]} 1-0

[Event "7th Cesme Open-A 2019"]
[Site "Cesme"]
[Date "2019.06.30"]
[Round "9"]
[White "Mammadov, Zaur"]
[Black "Quparadze, Giga"]
[Result "1/2-1/2"]
[ECO "B22"]
[WhiteElo "2428"]
[BlackElo "2498"]
[Annotator "ChessBase"]
[PlyCount "80"]
[EventDate "2019.06.24"]
[EventType "swiss"]
[EventCountry "TUR"]
[SourceTitle "playchess.com"]
[Source "ChessBase"]
[SourceQuality "1"]
[TimeControl "5400+30"]

1. e4 {[%emt 0:00:30]} c5 {[%emt 0:06:30]} 2. c3 {[%emt 0:00:30]} d5 {[%emt 0:00:30]} 3. exd5 {[%emt 0:00:30]} Qxd5 {[%emt 0:00:00]} 4. d4 {[%emt 0:00:00]} g6 {[%emt 0:00:00]} 5. Be3 {[%emt 0:00:00]} Bg7 {[%emt 0:01:30]} 6. Na3 {[%emt 0:00:30]} cxd4 {[%emt 0:00:30]} 7. Nb5 {[%emt 0:00:30]} Na6 {[%emt 0:00:30]} 8. Bxd4 {[%emt 0:00:00]} Bxd4 {[%emt 0:00:30]} 9. Nxd4 {[%emt 0:01:00]} Nf6 {[%emt 0:00:30]} 10. Ngf3 {[%emt 0:02:30]} O-O {[%emt 0:00:30]} 11. Bxa6 {[%emt 0:02:30]} bxa6 {[%emt 0:00:30]} 12. O-O {[%emt 0:00:00]} Rb8 {[%emt 0:00:30]} 13. Qe2 {[%emt 0:02:00]} Re8 {[%emt 0:00:30]} 14. Rfe1 {[%emt 0:01:30]} a5 {[%emt 0:00:30]} 15. b3 {[%emt 0:00:30]} a4 {[%emt 0:00:30]} 16. c4 {[%emt 0:00:30]} Qc5 {[%emt 0:00:30]} 17. Qe5 {[%emt 0:02:30]} Nd7 {[%emt 0:00:30]} 18. Qxc5 {[%emt 0:07:30]} Nxc5 {[%emt 0:00:00]} 19. Re5 {[%emt 0:00:30]} Nd7 {[%emt 0:00:00]} 20. Ra5 {[%emt 0:02:30]} axb3 {[%emt 0:00:30]} 21. axb3 {[%emt 0:00:00]} e5 {[%emt 0:00:00]} 22. Re1 {[%emt 0:00:00]} f6 {[%emt 0:01:00]} 23. Rxa7 {[%emt 0:11:30]} Nc5 {[%emt 0:00:30]} 24. Nc6 {[%emt 0:02:30]} Rxb3 {[%emt 0:00:30]} 25. Ne7+ {[%emt 0:01:30]} Kh8 {[%emt 0:00:00]} 26. Rc7 {[%emt 0:10:30]} Bb7 {[%emt 0:00:00]} 27. Nd5 {[%emt 0:06:30]} Bxd5 {[%emt 0:00:30]} 28. cxd5 {[%emt 0:00:30]} Nd3 {[%emt 0:00:00]} 29. Rd1 {[%emt 0:01:30]} Reb8 {[%emt 0:06:00]} 30. d6 {[%emt 0:20:30]} Rb1 {[%emt 0:00:30]} 31. Rf1 {[%emt 0:00:00]} Rxf1+ {[%emt 0:03:30]} 32. Kxf1 {[%emt 0:01:00]} Rd8 {[%emt 0:00:30]} 33. d7 {[%emt 0:06:02]} Kg7 {[%emt 0:00:00]} 34. Nd2 {[%emt 0:03:27]} Nf4 {[%emt 0:00:00]} 35. Ne4 {[%emt 0:00:04]} Ne6 {[%emt 0:00:00]} 36. Ra7 {[%emt 0:01:26]} Kf7 {[%emt 0:00:00]} 37. Nd6+ {[%emt 0:00:37]} Ke7 {[%emt 0:01:30]} 38. Nc8+ {[%emt 0:00:01]} Kf7 {[%emt 0:00:00]} 39. Nd6+ {[%emt 0:00:33]} Ke7 {[%emt 0:00:00]} 40. Nc8+ {[%emt 0:00:29]} Kf7 {[%emt 0:00:00]} 1/2-1/2

[Event "7th Cesme Open-A 2019"]
[Site "Cesme"]
[Date "2019.06.30"]
[Round "9"]
[White "Gokerkan, Cem Kaan"]
[Black "Baklan, Vladimir"]
[Result "1/2-1/2"]
[ECO "C24"]
[WhiteElo "2415"]
[BlackElo "2620"]
[Annotator "RC"]
[PlyCount "20"]
[EventDate "2019.06.24"]
[EventType "swiss"]
[EventCountry "TUR"]
[SourceTitle "playchess.com"]
[Source "ChessBase"]
[SourceQuality "1"]
[TimeControl "5400+30"]

1. e4 {[%emt 0:05:30]} e5 {[%emt 0:00:30]} 2. Bc4 {[%emt 0:01:30]} Nf6 {[%emt 0:00:30]} 3. d3 {[%emt 0:00:00]} c6 {[%emt 0:01:30]} 4. Nf3 {[%emt 0:02:00]} d5 {[%emt 0:00:30]} 5. Bb3 {[%emt 0:00:00]} a5 {[%emt 0:00:00]} 6. a4 {[%emt 0:08:00]} Bb4+ {[%emt 0:00:00]} 7. c3 {[%emt 0:01:30]} Bd6 {[%emt 0:00:30]} 8. Qe2 {[%emt 0:01:30]} O-O {[%emt 0:03:30]} 9. O-O {[%emt 0:08:30]} dxe4 {[%emt 0:08:30]} 10. dxe4 {[%emt 0:00:30]} Nbd7 {[%emt 0:00:30]} 1/2-1/2

[Event "7th Cesme Open-A 2019"]
[Site "Cesme"]
[Date "2019.06.30"]
[Round "9"]
[White "Lavrov, Maxim"]
[Black "Darban, Morteza"]
[Result "1-0"]
[ECO "B22"]
[WhiteElo "2401"]
[BlackElo "2264"]
[Annotator "NA"]
[PlyCount "130"]
[EventDate "2019.06.24"]
[EventType "swiss"]
[EventCountry "TUR"]
[SourceTitle "playchess.com"]
[Source "ChessBase"]
[SourceQuality "1"]
[TimeControl "5400+30"]

1. e4 {[%emt 0:00:30]} c5 {[%emt 0:01:30]} 2. c3 {[%emt 0:00:00]} d5 {[%emt 0:00:30]} 3. exd5 {[%emt 0:00:00]} Qxd5 {[%emt 0:00:00]} 4. d4 {[%emt 0:00:30]} Nc6 {[%emt 0:00:00]} 5. Nf3 {[%emt 0:00:00]} Bf5 {[%emt 0:00:30]} (5... Nf6 6. Be2 cxd4 7. cxd4 e6 8. O-O Be7 9. Nc3 Qd6 10. Nb5 Qd8 11. Bf4 Nd5 12. Bg3 O-O 13. Bc4 a6 14. Nc3 Nxc3 15. bxc3 b5 16. Bd3 Bb7 17. a4 b4 18. Rb1 Bf6 19. Be4 a5 20. cxb4 axb4 21. Bxc6 {½-½ (21) Zvjaginsev,V (2660)-Moiseenko,A (2692) Berlin 2015}) 6. dxc5 {[%emt 0:02:00] B22: Sicilian: 2 c3} Qxd1+ {[%emt 0:03:30]} 7. Kxd1 {[%emt 0:00:30]} O-O-O+ {[%emt 0:04:30]} 8. Ke1 {[%emt 0:01:30]} e5 {[%emt 0:00:30]} 9. b4 {[%emt 0:00:30]} f6 {[%emt 0:00:00]} 10. Be3 {[%emt 0:02:30]} Nge7 {[%emt 0:00:00]} 11. Nbd2 {[%emt 0:13:30]} Nd5 {[%emt 0:00:30]} 12. Rc1 {[%emt 0:00:00]} g5 {[%emt 0:01:30]} 13. Nb3 $146 {[%emt 0:04:00]} ({Predecessor:} 13. Bc4) 13... h5 {[%emt 0:10:30]} 14. Bc4 {[%emt 0:02:30]} h4 {[%emt 0:08:30]} 15. h3 {[%emt 0:01:30]} Nce7 {[%emt 0:07:30]} 16. Nfd2 {[%emt 0:02:30]} Ng6 {[%emt 0:04:30]} 17. Bxd5 {[%emt 0:01:30]} Rxd5 {[%emt 0:00:30]} 18. f3 {[%emt 0:00:30]} Nf4 {[%emt 0:01:30]} 19. Bxf4 {[%emt 0:00:30]} gxf4 {[%emt 0:00:00]} 20. Ke2 {[%emt 0:01:30]} Bd3+ {[%emt 0:03:00]} 21. Kf2 {[%emt 0:00:30]} f5 {[%emt 0:00:30]} 22. Rhe1 {[%emt 0:03:30]} Bg7 {[%emt 0:01:30]} 23. Na5 {[%emt 0:03:30]} Kc7 {[%emt 0:03:30]} 24. Kg1 {[%emt 0:10:30]} Rg8 {[%emt 0:04:30]} 25. Kh2 {[%emt 0:05:30]} b6 {[%emt 0:05:30]} 26. Nab3 $11 {[%emt 0:06:30]} Bf6 {[%emt 0:02:30]} 27. a4 {[%emt 0:01:30]} Rd7 {[%emt 0:00:30]} 28. cxb6+ {[%emt 0:01:30]} axb6 {[%emt 0:00:30]} 29. a5 {[%emt 0:00:00]} bxa5 {[%emt 0:08:30]} 30. Nc5 {[%emt 0:01:00]} Rd6 {[%emt 0:00:30]} 31. bxa5 {[%emt 0:03:30]} Kc6 {[%emt 0:00:30]} 32. Nxd3 {[%emt 0:05:30]} Rxd3 {[%emt 0:00:30]} 33. Re2 {[%emt 0:02:30]} Kd5 {[%emt 0:09:45]} 34. c4+ {[%emt 0:03:30]} Kd4 {[%emt 0:02:21]} 35. c5 {[%emt 0:00:30]} Rc8 {[%emt 0:02:09]} 36. Rc4+ {[%emt 0:02:30]} Kd5 {[%emt 0:00:03]} 37. Ra4 {[%emt 0:00:00]} Rc3 {[%emt 0:03:06]} 38. a6 {[%emt 0:06:01]} Be7 {[%emt 0:00:38]} 39. a7 {[%emt 0:03:33]} Ra8 {[%emt 0:00:08]} 40. c6 {[%emt 0:04:15]} Bd6 {[%emt 0:03:01]} 41. Ra5+ {[%emt 0:01:17]} Kxc6 {[%emt 0:01:21]} 42. Ra6+ {[%emt 0:00:50]} Kc7 {[%emt 0:00:53]} 43. Re1 {[%emt 0:00:45]} Rc2 {[%emt 0:09:19]} 44. Nb3 {[%emt 0:00:24]} Rc6 {[%emt 0:00:43]} 45. Rea1 {[%emt 0:02:00]} Bb4 {[%emt 0:00:00]} 46. Rxc6+ {[%emt 0:03:34]} Kxc6 {[%emt 0:00:27]} 47. Ra6+ {[%emt 0:00:30]} Kb5 {[%emt 0:00:30]} 48. Ra2 {[%emt 0:00:30]} Be1 {[%emt 0:00:30]} 49. Kg1 {[%emt 0:00:06]} Kb6 {[%emt 0:01:08]} 50. Kf1 {[%emt 0:00:13]} Bb4 {[%emt 0:00:00]} 51. Ke2 {[%emt 0:00:19]} Rxa7 {[%emt 0:00:28]} 52. Rxa7 {[%emt 0:00:16]} Kxa7 {[%emt 0:00:30]} 53. Kd3 {[%emt 0:00:30]} Kb6 {[%emt 0:00:30]} 54. Kc4 {[%emt 0:01:33]} Ba3 {[%emt 0:01:08]} 55. Kd5 {[%emt 0:00:30]} Kb5 {[%emt 0:00:30]} 56. Kxe5 {[%emt 0:00:30]} Kb4 {[%emt 0:00:30]} 57. Nd4 {[%emt 0:00:30]} Bb2 {[%emt 0:00:00]} 58. Kd5 {[%emt 0:00:08]} Kc3 {[%emt 0:00:00]} 59. Nxf5 {[%emt 0:01:06]} Kd3 {[%emt 0:00:00]} 60. Nxh4 {[%emt 0:00:25]} Ke3 {[%emt 0:00:00]} 61. Ng6 {[%emt 0:00:13]} Bg7 {[%emt 0:00:31]} 62. h4 {[%emt 0:00:39]} Bh6 {[%emt 0:00:04]} 63. h5 {[%emt 0:00:45]} Kf2 {[%emt 0:00:02]} 64. Nh4 {[%emt 0:00:57]} Bg5 {[%emt 0:00:04]} 65. Nf5 {[%emt 0:00:10]} Kxg2 {[%emt 0:00:01]} 1-0

[Event "7th Cesme Open-A 2019"]
[Site "Cesme"]
[Date "2019.06.30"]
[Round "9"]
[White "Barsov, Alexei"]
[Black "Kamer, Kayra"]
[Result "1-0"]
[ECO "E69"]
[WhiteElo "2397"]
[BlackElo "2353"]
[Annotator "NA"]
[PlyCount "101"]
[EventDate "2019.06.24"]
[EventType "swiss"]
[EventCountry "TUR"]
[SourceTitle "playchess.com"]
[Source "ChessBase"]
[SourceQuality "1"]
[TimeControl "5400+30"]

1. d4 {[%emt 0:05:30]} Nf6 {[%emt 0:13:30]} 2. c4 {[%emt 0:00:30]} g6 {[%emt 0:00:30]} 3. Nf3 {[%emt 0:00:30]} Bg7 {[%emt 0:00:00]} 4. g3 {[%emt 0:00:00]} O-O {[%emt 0:00:00]} 5. Bg2 {[%emt 0:00:00]} c6 {[%emt 0:00:30]} 6. O-O {[%emt 0:00:30]} d6 {[%emt 0:00:30]} 7. Nc3 {[%emt 0:00:00]} Qa5 {[%emt 0:00:00]} 8. e4 {[%emt 0:00:00]} e5 {[%emt 0:00:00]} 9. h3 {[%emt 0:00:00]} Nbd7 {[%emt 0:00:30]} 10. Re1 {[%emt 0:00:00]} exd4 {[%emt 0:00:30]} 11. Nxd4 {[%emt 0:00:30]} Ne5 {[%emt 0:00:00]} 12. Bf1 {[%emt 0:00:00]} Qb6 {[%emt 0:00:00]} 13. Kg2 {[%emt 0:00:00]} a6 {[%emt 0:02:30]} 14. f4 {[%emt 0:14:30]} Ned7 {[%emt 0:00:30]} 15. Nc2 {[%emt 0:03:30]} Qc7 {[%emt 0:03:30]} 16. Be3 {[%emt 0:17:30]} Re8 {[%emt 0:00:30]} 17. Bf2 {[%emt 0:00:30]} b5 {[%emt 0:00:30]} 18. cxb5 {[%emt 0:00:30]} axb5 {[%emt 0:00:30]} 19. Qd2 {[%emt 0:07:30]} Bb7 {[%emt 0:03:30]} 20. Kh2 {[%emt 0:00:30]} Nb6 {[%emt 0:05:30]} 21. b3 {[%emt 0:00:30]} b4 {[%emt 0:02:30]} 22. Nxb4 {[%emt 0:00:30]} Nxe4 {[%emt 0:00:30]} 23. Rxe4 {[%emt 0:23:30]} Rxe4 {[%emt 0:00:30]} 24. Nxe4 {[%emt 0:00:30]} Bxa1 {[%emt 0:04:30]} 25. Qxd6 {[%emt 0:00:30]} Qxd6 {[%emt 0:01:30]} 26. Nxd6 {[%emt 0:00:30]} Bc3 {[%emt 0:00:30]} 27. Bxb6 {[%emt 0:00:30]} Bxb4 {[%emt 0:00:30]} 28. Nxb7 {[%emt 0:00:30]} Rb8 {[%emt 0:00:00]} 29. Ba6 {[%emt 0:12:55]} Ra8 {[%emt 0:00:00]} 30. Bc4 {[%emt 0:00:18]} Rb8 {[%emt 0:00:00]} 31. Nd8 {[%emt 0:03:31]} Rxb6 {[%emt 0:00:00]} 32. a4 {[%emt 0:00:00]} Kg7 {[%emt 0:12:30]} 33. Nxf7 {[%emt 0:00:00]} c5 {[%emt 0:11:30]} 34. Kg2 {[%emt 0:01:04]} Bc3 {[%emt 0:01:30]} 35. Kf3 {[%emt 0:04:49]} Rb7 {[%emt 0:02:30]} 36. Nd8 {[%emt 0:01:20]} Rd7 {[%emt 0:03:30]} 37. Ne6+ {[%emt 0:00:06]} Kh6 {[%emt 0:00:30]} 38. g4 {[%emt 0:03:32]} Be1 {[%emt 0:03:30]} 39. Nxc5 {[%emt 0:01:16]} Rd2 {[%emt 0:00:30]} 40. Nd3 {[%emt 0:00:38]} Bh4 {[%emt 0:00:00]} 41. g5+ {[%emt 0:00:50]} Kh5 {[%emt 0:00:00]} 42. a5 {[%emt 0:00:45]} Rh2 {[%emt 0:02:30]} 43. Be6 {[%emt 0:00:18]} Bxg5 {[%emt 0:01:30]} 44. fxg5 {[%emt 0:00:07]} Ra2 {[%emt 0:00:30]} 45. b4 {[%emt 0:00:30]} Ra3 {[%emt 0:00:30]} 46. Ke4 {[%emt 0:00:10]} Kxg5 {[%emt 0:00:00]} 47. Nc5 {[%emt 0:00:34]} h5 {[%emt 0:00:00]} 48. a6 {[%emt 0:00:10]} Kh4 {[%emt 0:00:00]} 49. b5 {[%emt 0:00:21]} Ra5 {[%emt 0:00:00]} 50. b6 {[%emt 0:01:03]} Rxc5 {[%emt 0:00:30]} 51. b7 {[%emt 0:00:22]} 1-0